[Event "Early-Titled-Tuesday-Blitz-December-26-2023"]
[Site "Chess.com"]
[Date "2023.12.26"]
[Round "3"]
[White "Zavgorodniy_Sergiy"]
[Black "SergioMoralesG"]
[Result "1-0"]
[WhiteElo "2610"]
[BlackElo "2384"]
[TimeControl "180+1"]
[EndTime "8:25:50 PST"]
[Termination "Zavgorodniy_Sergiy won by resignation"]

1. d4 {[%clk 0:03:00.9]} 1... d5 {[%clk 0:02:59.3]} 2. c4 {[%clk 0:03:01]} 2...
c6 {[%clk 0:02:59.9]} 3. e3 {[%clk 0:03:01.2]} 3... Nf6 {[%clk 0:02:59.1]} 4.
Bd3 {[%clk 0:03:01.3]} 4... dxc4 {[%clk 0:02:54.7]} 5. Bxc4 {[%clk 0:03:00.9]}
5... Bf5 {[%clk 0:02:53.3]} 6. Qb3 {[%clk 0:03:00.8]} 6... e6 {[%clk 0:02:43.5]}
7. Qxb7 {[%clk 0:03:00.7]} 7... Nbd7 {[%clk 0:02:44.1]} 8. Qb3 {[%clk
0:03:00.5]} 8... Bd6 {[%clk 0:02:36.3]} 9. Nf3 {[%clk 0:02:58.4]} 9... O-O
{[%clk 0:02:31.8]} 10. O-O {[%clk 0:02:57.8]} 10... Ne4 {[%clk 0:02:27.6]} 11.
Nbd2 {[%clk 0:02:57]} 11... Qf6 {[%clk 0:02:23]} 12. Nxe4 {[%clk 0:02:51]} 12...
Bxe4 {[%clk 0:02:22.6]} 13. Be2 {[%clk 0:02:49.9]} 13... c5 {[%clk 0:02:11.6]}
14. Qd1 {[%clk 0:02:37.9]} 14... Rad8 {[%clk 0:02:07.7]} 15. Bd2 {[%clk
0:02:23.2]} 15... cxd4 {[%clk 0:01:39.9]} 16. exd4 {[%clk 0:02:19.5]} 16... Nb6
{[%clk 0:01:35.5]} 17. Bg5 {[%clk 0:02:15.5]} 17... Qg6 {[%clk 0:01:25.9]} 18.
Bxd8 {[%clk 0:02:15.6]} 18... Rxd8 {[%clk 0:01:26.8]} 19. Qd2 {[%clk 0:02:05.5]}
19... Nd5 {[%clk 0:01:23.1]} 20. Qg5 {[%clk 0:01:59.7]} 20... f6 {[%clk
0:01:04.2]} 21. Qxg6 {[%clk 0:01:58.3]} 21... Bxg6 {[%clk 0:01:03.3]} 22. g3
{[%clk 0:01:54.2]} 22... Bh5 {[%clk 0:00:49.2]} 23. Rac1 {[%clk 0:01:48.7]}
23... Rb8 {[%clk 0:00:43.1]} 24. b3 {[%clk 0:01:46.6]} 24... Bb4 {[%clk
0:00:40.8]} 25. Kg2 {[%clk 0:01:41.7]} 25... Nc3 {[%clk 0:00:40.1]} 26. Bc4
{[%clk 0:01:39.2]} 26... Kf7 {[%clk 0:00:24.3]} 27. a3 {[%clk 0:01:31.4]} 1-0

[Event "Early-Titled-Tuesday-Blitz-December-26-2023"]
[Site "Chess.com"]
[Date "2023.12.26"]
[Round "3"]
[White "SharapovEvgeny"]
[Black "Matols"]
[Result "1-0"]
[WhiteElo "2581"]
[BlackElo "2394"]
[TimeControl "180+1"]
[EndTime "8:25:51 PST"]
[Termination "SharapovEvgeny won by resignation"]

1. e4 {[%clk 0:03:00.1]} 1... c6 {[%clk 0:03:00.3]} 2. d4 {[%clk 0:02:59.8]}
2... d5 {[%clk 0:03:00.7]} 3. e5 {[%clk 0:03:00.4]} 3... c5 {[%clk 0:03:00.7]}
4. Nf3 {[%clk 0:03:00.3]} 4... Nc6 {[%clk 0:02:53.6]} 5. c4 {[%clk 0:03:00]}
5... cxd4 {[%clk 0:02:52]} 6. Nxd4 {[%clk 0:02:59.2]} 6... e6 {[%clk 0:02:45.2]}
7. Nxc6 {[%clk 0:02:56]} 7... bxc6 {[%clk 0:02:44.6]} 8. cxd5 {[%clk 0:02:56.2]}
8... cxd5 {[%clk 0:02:43.4]} 9. Bd3 {[%clk 0:02:55.1]} 9... Bb4+ {[%clk
0:02:39.4]} 10. Bd2 {[%clk 0:02:55.3]} 10... Bxd2+ {[%clk 0:02:38.5]} 11. Nxd2
{[%clk 0:02:55.7]} 11... Ne7 {[%clk 0:02:39]} 12. O-O {[%clk 0:02:55.3]} 12...
O-O {[%clk 0:02:32.9]} 13. Nf3 {[%clk 0:02:55.4]} 13... f6 {[%clk 0:02:10.5]}
14. Qc2 {[%clk 0:02:51.6]} 14... f5 {[%clk 0:01:58.6]} 15. Nd4 {[%clk
0:02:51.3]} 15... Bd7 {[%clk 0:01:57.2]} 16. Rfc1 {[%clk 0:02:48.1]} 16... Rc8
{[%clk 0:01:55.8]} 17. Qb3 {[%clk 0:02:43.6]} 17... Qb6 {[%clk 0:01:54.6]} 18.
Qxb6 {[%clk 0:02:43.1]} 18... axb6 {[%clk 0:01:55.5]} 19. f4 {[%clk 0:02:41.6]}
19... Kf7 {[%clk 0:01:51.8]} 20. Kf2 {[%clk 0:02:41.6]} 20... Rxc1 {[%clk
0:01:44.7]} 21. Rxc1 {[%clk 0:02:41.2]} 21... Rc8 {[%clk 0:01:45.4]} 22. Rxc8
{[%clk 0:02:40.9]} 22... Bxc8 {[%clk 0:01:43.9]} 23. Ke3 {[%clk 0:02:41.1]}
23... Bd7 {[%clk 0:01:35.4]} 24. g3 {[%clk 0:02:41.2]} 24... Ke8 {[%clk
0:01:31]} 25. Kd2 {[%clk 0:02:41.1]} 25... Kd8 {[%clk 0:01:30.2]} 26. Kc3 {[%clk
0:02:41.5]} 26... Kc7 {[%clk 0:01:30.1]} 27. b3 {[%clk 0:02:39.3]} 27... h6
{[%clk 0:00:59.8]} 28. h4 {[%clk 0:02:38.6]} 28... g6 {[%clk 0:00:57.4]} 29. a4
{[%clk 0:02:36.6]} 29... Kb7 {[%clk 0:00:53.8]} 30. Kb4 {[%clk 0:02:33]} 30...
Nc6+ {[%clk 0:00:47]} 31. Nxc6 {[%clk 0:02:32.8]} 31... Bxc6 {[%clk 0:00:47.4]}
32. a5 {[%clk 0:02:33]} 32... bxa5+ {[%clk 0:00:40.4]} 33. Kxa5 {[%clk
0:02:32.8]} 33... d4 {[%clk 0:00:39]} 34. Kb4 {[%clk 0:02:32.6]} 34... Bd5
{[%clk 0:00:30.9]} 35. Kc5 {[%clk 0:02:25.2]} 35... Bxb3 {[%clk 0:00:29.8]} 36.
Kxd4 {[%clk 0:02:25.6]} 36... Kc6 {[%clk 0:00:27]} 37. Kc3 {[%clk 0:02:24.4]}
37... Ba2 {[%clk 0:00:24]} 38. Be2 {[%clk 0:02:21.9]} 38... Kc5 {[%clk
0:00:22.8]} 39. g4 {[%clk 0:02:16]} 39... Bd5 {[%clk 0:00:15.8]} 40. g5 {[%clk
0:02:12.2]} 40... h5 {[%clk 0:00:15]} 41. Bxh5 {[%clk 0:02:07.3]} 41... gxh5
{[%clk 0:00:12.5]} 42. g6 {[%clk 0:02:07.4]} 1-0

[Event "Early-Titled-Tuesday-Blitz-December-26-2023"]
[Site "Chess.com"]
[Date "2023.12.26"]
[Round "3"]
[White "Andrei_Skvortsov"]
[Black "IAgrest"]
[Result "1-0"]
[WhiteElo "2681"]
[BlackElo "2436"]
[TimeControl "180+1"]
[EndTime "8:25:52 PST"]
[Termination "Andrei_Skvortsov won on time"]

1. d4 {[%clk 0:03:00.9]} 1... Nf6 {[%clk 0:02:59.2]} 2. c4 {[%clk 0:03:01.3]}
2... g6 {[%clk 0:02:59.4]} 3. Nf3 {[%clk 0:03:00.1]} 3... Bg7 {[%clk 0:02:59.2]}
4. g3 {[%clk 0:02:59.5]} 4... O-O {[%clk 0:02:58.5]} 5. Bg2 {[%clk 0:02:59.4]}
5... d6 {[%clk 0:02:58.6]} 6. O-O {[%clk 0:02:59.4]} 6... Nbd7 {[%clk
0:02:58.8]} 7. b3 {[%clk 0:02:59.1]} 7... e5 {[%clk 0:02:53.6]} 8. Nc3 {[%clk
0:02:55.6]} 8... Re8 {[%clk 0:02:53]} 9. e3 {[%clk 0:02:53.4]} 9... c6 {[%clk
0:02:51.7]} 10. a4 {[%clk 0:02:53.1]} 10... Nf8 {[%clk 0:02:18]} 11. dxe5 {[%clk
0:02:51.9]} 11... Ng4 {[%clk 0:02:09.1]} 12. Ba3 {[%clk 0:02:50.9]} 12... Nxe5
{[%clk 0:02:01.3]} 13. Nxe5 {[%clk 0:02:50.2]} 13... dxe5 {[%clk 0:01:58.3]} 14.
Qxd8 {[%clk 0:02:47.8]} 14... Rxd8 {[%clk 0:01:58.6]} 15. Ne4 {[%clk 0:02:46.1]}
15... Ne6 {[%clk 0:01:30.5]} 16. Rad1 {[%clk 0:02:39.1]} 16... Re8 {[%clk
0:01:01.4]} 17. Nd6 {[%clk 0:02:36.5]} 17... Rd8 {[%clk 0:01:01.6]} 18. Ne4
{[%clk 0:02:21.5]} 18... Re8 {[%clk 0:01:01]} 19. h4 {[%clk 0:02:22.1]} 19... a5
{[%clk 0:00:40.7]} 20. Rd2 {[%clk 0:02:17.1]} 20... f5 {[%clk 0:00:27.8]} 21.
Nd6 {[%clk 0:02:15.9]} 21... Rd8 {[%clk 0:00:27.9]} 22. Rfd1 {[%clk 0:02:16.1]}
22... Bf8 {[%clk 0:00:21.4]} 23. Bb2 {[%clk 0:02:15.3]} 23... Bg7 {[%clk
0:00:15.1]} 24. f4 {[%clk 0:01:57.3]} 24... e4 {[%clk 0:00:11.5]} 25. Bxg7
{[%clk 0:01:56]} 25... Nxg7 {[%clk 0:00:08.6]} 26. Nxf5 {[%clk 0:01:45]} 26...
Rxd2 {[%clk 0:00:07.6]} 27. Nh6+ {[%clk 0:01:45.2]} 27... Kf8 {[%clk 0:00:07.1]}
28. Rxd2 {[%clk 0:01:46.1]} 28... Be6 {[%clk 0:00:06.1]} 29. Bxe4 {[%clk
0:01:44.7]} 29... Ne8 {[%clk 0:00:03.2]} 30. f5 {[%clk 0:01:43]} 1-0

[Event "Early-Titled-Tuesday-Blitz-December-26-2023"]
[Site "Chess.com"]
[Date "2023.12.26"]
[Round "3"]
[White "Schattman"]
[Black "slorovel"]
[Result "1/2-1/2"]
[WhiteElo "2463"]
[BlackElo "2638"]
[TimeControl "180+1"]
[EndTime "8:25:54 PST"]
[Termination "Game drawn by agreement"]

1. c4 {[%clk 0:03:00.9]} 1... g6 {[%clk 0:03:00]} 2. g3 {[%clk 0:02:57.4]} 2...
Bg7 {[%clk 0:03:00.9]} 3. Bg2 {[%clk 0:02:57.9]} 3... e5 {[%clk 0:03:01.5]} 4.
e4 {[%clk 0:02:56]} 4... Ne7 {[%clk 0:03:01.9]} 5. Ne2 {[%clk 0:02:55.8]} 5...
O-O {[%clk 0:03:01.1]} 6. O-O {[%clk 0:02:52.4]} 6... f5 {[%clk 0:02:58.1]} 7.
d3 {[%clk 0:02:50.2]} 7... d6 {[%clk 0:02:57.3]} 8. Nbc3 {[%clk 0:02:46.8]} 8...
Be6 {[%clk 0:02:57.2]} 9. Nd5 {[%clk 0:02:42.7]} 9... c6 {[%clk 0:02:55]} 10.
Nxe7+ {[%clk 0:02:40.7]} 10... Qxe7 {[%clk 0:02:55.9]} 11. exf5 {[%clk 0:02:33]}
11... gxf5 {[%clk 0:02:55.5]} 12. f4 {[%clk 0:02:30.8]} 12... Nd7 {[%clk
0:02:54.5]} 13. Rb1 {[%clk 0:02:23.9]} 13... a5 {[%clk 0:02:53.9]} 14. b3 {[%clk
0:02:19.7]} 14... h5 {[%clk 0:02:53.7]} 15. Be3 {[%clk 0:02:12.1]} 15... h4
{[%clk 0:02:53.1]} 16. d4 {[%clk 0:02:10.4]} 16... e4 {[%clk 0:02:49.6]} 17. d5
{[%clk 0:02:04.7]} 17... cxd5 {[%clk 0:02:41]} 18. cxd5 {[%clk 0:02:02.3]} 18...
Bf7 {[%clk 0:02:41.5]} 19. Qd2 {[%clk 0:01:35.4]} 19... Nf6 {[%clk 0:02:36.5]}
20. Nc3 {[%clk 0:01:34.3]} 20... Ng4 {[%clk 0:02:36.2]} 21. Bd4 {[%clk 0:01:31]}
21... e3 {[%clk 0:02:36.3]} 22. Qd3 {[%clk 0:01:26.2]} 22... hxg3 {[%clk
0:02:09.9]} 23. hxg3 {[%clk 0:01:22.8]} 23... Bg6 {[%clk 0:02:03.8]} 24. Bf3
{[%clk 0:01:11.2]} 24... Bxd4 {[%clk 0:01:55.9]} 25. Qxd4 {[%clk 0:01:09.8]}
25... Rae8 {[%clk 0:01:54.9]} 26. Kg2 {[%clk 0:00:42.6]} 26... e2 {[%clk
0:01:51.3]} 27. Rh1 {[%clk 0:00:32.2]} 27... Ne3+ {[%clk 0:01:51.2]} 28. Kf2
{[%clk 0:00:27.1]} 28... e1=Q+ {[%clk 0:01:47.2]} 29. Rbxe1 {[%clk 0:00:19.5]}
1/2-1/2

[Event "Early-Titled-Tuesday-Blitz-December-26-2023"]
[Site "Chess.com"]
[Date "2023.12.26"]
[Round "3"]
[White "Eternauta2400"]
[Black "Dinosaurio_1975"]
[Result "1-0"]
[WhiteElo "2812"]
[BlackElo "2601"]
[TimeControl "180+1"]
[EndTime "8:25:56 PST"]
[Termination "Eternauta2400 won by resignation"]

1. c4 {[%clk 0:03:00.9]} 1... e6 {[%clk 0:02:58.1]} 2. g3 {[%clk 0:03:00.6]}
2... d5 {[%clk 0:02:57.4]} 3. Bg2 {[%clk 0:03:01.5]} 3... Nf6 {[%clk 0:02:57.6]}
4. Nf3 {[%clk 0:03:02.1]} 4... Be7 {[%clk 0:02:52.3]} 5. d4 {[%clk 0:03:02.3]}
5... O-O {[%clk 0:02:52.4]} 6. Nc3 {[%clk 0:03:02]} 6... c6 {[%clk 0:02:50.5]}
7. O-O {[%clk 0:03:00.4]} 7... a5 {[%clk 0:02:49.8]} 8. b3 {[%clk 0:02:58]} 8...
b6 {[%clk 0:02:48.5]} 9. Ne5 {[%clk 0:02:51.2]} 9... Nfd7 {[%clk 0:02:44.8]} 10.
Nxd7 {[%clk 0:02:48.4]} 10... Qxd7 {[%clk 0:02:43.9]} 11. Bb2 {[%clk 0:02:41]}
11... Ba6 {[%clk 0:02:43.6]} 12. Qd3 {[%clk 0:02:29.2]} 12... b5 {[%clk
0:02:24.6]} 13. cxb5 {[%clk 0:02:29.1]} 13... cxb5 {[%clk 0:02:24.5]} 14. Qd2
{[%clk 0:02:29.2]} 14... Rc8 {[%clk 0:02:10.8]} 15. Rfd1 {[%clk 0:02:26.7]}
15... Ra7 {[%clk 0:02:05.9]} 16. e4 {[%clk 0:02:25.5]} 16... Rac7 {[%clk
0:01:57.4]} 17. exd5 {[%clk 0:02:25.5]} 17... b4 {[%clk 0:01:47.6]} 18. dxe6
{[%clk 0:02:16.3]} 18... Qxe6 {[%clk 0:01:28.4]} 19. Nd5 {[%clk 0:02:14.7]}
19... Rc2 {[%clk 0:01:27.7]} 20. Qe3 {[%clk 0:02:14.5]} 20... Bd8 {[%clk
0:01:02.3]} 21. Rab1 {[%clk 0:02:06.6]} 21... Nd7 {[%clk 0:00:56.6]} 22. Qxe6
{[%clk 0:02:03.3]} 22... fxe6 {[%clk 0:00:56.5]} 23. Ne3 {[%clk 0:02:04]} 23...
R2c7 {[%clk 0:00:51]} 24. Bh3 {[%clk 0:01:45.4]} 24... Kf7 {[%clk 0:00:46.2]}
25. d5 {[%clk 0:01:45.7]} 25... exd5 {[%clk 0:00:39.4]} 26. Rxd5 {[%clk
0:01:36.8]} 26... Nb6 {[%clk 0:00:08.4]} 27. Bxc8 {[%clk 0:01:36.3]} 27... Rxc8
{[%clk 0:00:08]} 28. Rd6 {[%clk 0:01:33.7]} 28... Bb7 {[%clk 0:00:07]} 29. Rbd1
{[%clk 0:01:32.1]} 29... Be7 {[%clk 0:00:05.8]} 30. Rxb6 {[%clk 0:01:31.8]} 1-0

[Event "Early-Titled-Tuesday-Blitz-December-26-2023"]
[Site "Chess.com"]
[Date "2023.12.26"]
[Round "3"]
[White "ilya2700"]
[Black "Macron20hTF1"]
[Result "1-0"]
[WhiteElo "2344"]
[BlackElo "2569"]
[TimeControl "180+1"]
[EndTime "8:26:04 PST"]
[Termination "ilya2700 won by resignation"]

1. e4 {[%clk 0:03:00.2]} 1... g6 {[%clk 0:03:00.9]} 2. d4 {[%clk 0:02:58.6]}
2... Bg7 {[%clk 0:03:01.6]} 3. Nf3 {[%clk 0:02:58.7]} 3... d6 {[%clk 0:03:02.2]}
4. Bc4 {[%clk 0:02:58.5]} 4... a6 {[%clk 0:03:02.2]} 5. Bf4 {[%clk 0:02:55.3]}
5... e6 {[%clk 0:03:01.9]} 6. Nc3 {[%clk 0:02:53.9]} 6... Ne7 {[%clk 0:03:01.5]}
7. Qd2 {[%clk 0:02:54.1]} 7... h6 {[%clk 0:03:00.9]} 8. O-O-O {[%clk 0:02:50.9]}
8... b5 {[%clk 0:02:58.6]} 9. Bb3 {[%clk 0:02:50.5]} 9... Bb7 {[%clk 0:02:58.9]}
10. e5 {[%clk 0:02:38.4]} 10... d5 {[%clk 0:02:58.9]} 11. h4 {[%clk 0:02:32.4]}
11... Nd7 {[%clk 0:02:58.6]} 12. g4 {[%clk 0:02:31.3]} 12... c5 {[%clk
0:02:53.8]} 13. dxc5 {[%clk 0:02:30.5]} 13... Nxc5 {[%clk 0:02:54.7]} 14. Nd4
{[%clk 0:02:20.4]} 14... Rc8 {[%clk 0:02:42.4]} 15. h5 {[%clk 0:02:07.7]} 15...
g5 {[%clk 0:02:41.9]} 16. Bg3 {[%clk 0:02:01.7]} 16... Qa5 {[%clk 0:02:32.6]}
17. Kb1 {[%clk 0:01:55.7]} 17... b4 {[%clk 0:02:32.9]} 18. Nce2 {[%clk
0:01:49.4]} 18... Ne4 {[%clk 0:02:32.2]} 19. Qe3 {[%clk 0:01:46.8]} 19... O-O
{[%clk 0:02:18.6]} 20. f4 {[%clk 0:01:46.4]} 20... Nxg3 {[%clk 0:02:12.7]} 21.
Nxg3 {[%clk 0:01:34.4]} 21... gxf4 {[%clk 0:02:12.7]} 22. Qxf4 {[%clk
0:01:35.3]} 22... Qc7 {[%clk 0:02:12]} 23. Rde1 {[%clk 0:01:28.8]} 23... Nc6
{[%clk 0:02:02.2]} 24. Nxc6 {[%clk 0:01:24.1]} 24... Bxc6 {[%clk 0:02:03.1]} 25.
g5 {[%clk 0:01:25]} 25... f6 {[%clk 0:01:07.5]} 26. gxh6 {[%clk 0:01:04.8]}
26... fxe5 {[%clk 0:01:02]} 27. Qg4 {[%clk 0:01:03.2]} 27... Rf4 {[%clk
0:00:51]} 28. Qxe6+ {[%clk 0:01:00.6]} 28... Kh7 {[%clk 0:00:46.4]} 29. hxg7
{[%clk 0:00:57.6]} 1-0

[Event "Early-Titled-Tuesday-Blitz-December-26-2023"]
[Site "Chess.com"]
[Date "2023.12.26"]
[Round "3"]
[White "jeetjain"]
[Black "HappyPawny"]
[Result "1-0"]
[WhiteElo "2571"]
[BlackElo "2269"]
[TimeControl "180+1"]
[EndTime "8:26:05 PST"]
[Termination "jeetjain won by resignation"]

1. Nf3 {[%clk 0:03:00.9]} 1... Nf6 {[%clk 0:02:58.2]} 2. g3 {[%clk 0:03:01.8]}
2... d5 {[%clk 0:02:58.3]} 3. Bg2 {[%clk 0:03:01.5]} 3... c5 {[%clk 0:02:55.5]}
4. O-O {[%clk 0:03:02.4]} 4... Nc6 {[%clk 0:02:52.1]} 5. d3 {[%clk 0:03:03.3]}
5... e6 {[%clk 0:02:51.8]} 6. Nbd2 {[%clk 0:03:00.4]} 6... Be7 {[%clk
0:02:51.1]} 7. e4 {[%clk 0:02:48.5]} 7... O-O {[%clk 0:02:51]} 8. e5 {[%clk
0:02:47]} 8... Nd7 {[%clk 0:02:51]} 9. Qe2 {[%clk 0:02:47]} 9... Qc7 {[%clk
0:02:50.4]} 10. Re1 {[%clk 0:02:47.6]} 10... b5 {[%clk 0:02:48.2]} 11. h4 {[%clk
0:02:48]} 11... Bb7 {[%clk 0:02:47]} 12. Nf1 {[%clk 0:02:48.2]} 12... a5 {[%clk
0:02:45.3]} 13. h5 {[%clk 0:02:48.8]} 13... Rfe8 {[%clk 0:02:26.7]} 14. h6
{[%clk 0:02:48]} 14... g6 {[%clk 0:02:24.3]} 15. N1h2 {[%clk 0:02:47.7]} 15...
b4 {[%clk 0:02:14.4]} 16. Ng4 {[%clk 0:02:43.9]} 16... a4 {[%clk 0:02:11.2]} 17.
Bf4 {[%clk 0:02:36.4]} 17... Qd8 {[%clk 0:01:45.7]} 18. a3 {[%clk 0:02:30.1]}
18... Ba6 {[%clk 0:01:45.1]} 19. Qd2 {[%clk 0:02:29.1]} 19... c4 {[%clk
0:01:41]} 20. Bg5 {[%clk 0:02:28.2]} 20... c3 {[%clk 0:01:31]} 21. bxc3 {[%clk
0:02:27]} 21... bxc3 {[%clk 0:01:31.3]} 22. Qc1 {[%clk 0:02:27.4]} 22... Rb8
{[%clk 0:01:19.2]} 23. Qf4 {[%clk 0:02:27.1]} 23... Rb2 {[%clk 0:01:15.6]} 24.
Bxe7 {[%clk 0:02:27]} 24... Qxe7 {[%clk 0:01:15.8]} 25. Qxa4 {[%clk 0:02:26.9]}
25... Bb5 {[%clk 0:01:13.9]} 26. Qf4 {[%clk 0:02:23.7]} 26... Rxc2 {[%clk
0:01:13.9]} 27. Bf1 {[%clk 0:02:17.6]} 27... Rb2 {[%clk 0:01:03.8]} 28. Ng5
{[%clk 0:02:16.4]} 28... c2 {[%clk 0:00:53.7]} 29. Rac1 {[%clk 0:02:14.4]} 29...
Na5 {[%clk 0:00:49.8]} 30. Ne3 {[%clk 0:02:12.4]} 30... Rc8 {[%clk 0:00:42.5]}
31. Qd4 {[%clk 0:02:03.7]} 31... Qxa3 {[%clk 0:00:39.3]} 32. Nxd5 {[%clk
0:01:58.2]} 32... exd5 {[%clk 0:00:32.5]} 33. e6 {[%clk 0:01:58.3]} 33... f6
{[%clk 0:00:10.1]} 34. exd7 {[%clk 0:01:57.7]} 34... Rf8 {[%clk 0:00:10.3]} 35.
d8=Q {[%clk 0:01:51.8]} 35... Rxd8 {[%clk 0:00:10.2]} 36. Qxf6 {[%clk
0:01:52.4]} 36... Qf8 {[%clk 0:00:04.3]} 37. Qxb2 {[%clk 0:01:52.4]} 1-0

[Event "Early-Titled-Tuesday-Blitz-December-26-2023"]
[Site "Chess.com"]
[Date "2023.12.26"]
[Round "3"]
[White "Drags95"]
[Black "Kleyton_Lima"]
[Result "1-0"]
[WhiteElo "2799"]
[BlackElo "2570"]
[TimeControl "180+1"]
[EndTime "8:26:18 PST"]
[Termination "Drags95 won by resignation"]

1. d4 {[%clk 0:02:49.9]} 1... Nf6 {[%clk 0:02:58.7]} 2. c4 {[%clk 0:02:50.4]}
2... g6 {[%clk 0:02:58.9]} 3. Nc3 {[%clk 0:02:50.5]} 3... d5 {[%clk 0:02:59.3]}
4. Nf3 {[%clk 0:02:50.4]} 4... Bg7 {[%clk 0:02:58.9]} 5. Qb3 {[%clk 0:02:51]}
5... dxc4 {[%clk 0:02:58]} 6. Qxc4 {[%clk 0:02:51.9]} 6... O-O {[%clk
0:02:58.4]} 7. e4 {[%clk 0:02:52.5]} 7... Nc6 {[%clk 0:02:47.8]} 8. Be2 {[%clk
0:02:48.8]} 8... e5 {[%clk 0:02:46.1]} 9. d5 {[%clk 0:02:48.9]} 9... Nd4 {[%clk
0:02:45]} 10. Nxd4 {[%clk 0:02:49.4]} 10... exd4 {[%clk 0:02:44.5]} 11. Qxd4
{[%clk 0:02:50.3]} 11... c6 {[%clk 0:02:43.8]} 12. Qc4 {[%clk 0:02:51]} 12... b5
{[%clk 0:02:41.6]} 13. Qxc6 {[%clk 0:02:51.4]} 13... Bd7 {[%clk 0:02:39.8]} 14.
Qd6 {[%clk 0:02:52]} 14... Re8 {[%clk 0:02:38.6]} 15. e5 {[%clk 0:02:51.8]}
15... b4 {[%clk 0:02:36.9]} 16. Qxb4 {[%clk 0:02:46.3]} 16... Rxe5 {[%clk
0:02:36.3]} 17. O-O {[%clk 0:02:38]} 17... Nxd5 {[%clk 0:02:36.1]} 18. Nxd5
{[%clk 0:02:38.3]} 18... Rxd5 {[%clk 0:02:37]} 19. Bf3 {[%clk 0:02:35.4]} 19...
Rd4 {[%clk 0:02:17.8]} 20. Qc5 {[%clk 0:02:21.7]} 20... Rc8 {[%clk 0:02:14.3]}
21. Qxa7 {[%clk 0:02:09.6]} 21... Bg4 {[%clk 0:02:07.1]} 22. Bxg4 {[%clk
0:01:58.4]} 22... Rxg4 {[%clk 0:02:06.3]} 23. Qb7 {[%clk 0:01:45.6]} 23... Rb8
{[%clk 0:02:03.6]} 24. Qf3 {[%clk 0:01:44.2]} 24... Rgb4 {[%clk 0:01:59.5]} 25.
Bf4 {[%clk 0:01:38.5]} 25... R8b7 {[%clk 0:01:53.1]} 26. Rad1 {[%clk 0:01:38]}
26... Qa5 {[%clk 0:01:53]} 27. b3 {[%clk 0:01:37.3]} 27... h5 {[%clk 0:01:52.4]}
28. Bd2 {[%clk 0:01:36.9]} 28... Qxa2 {[%clk 0:01:50.2]} 29. Bxb4 {[%clk
0:01:36.9]} 29... Rxb4 {[%clk 0:01:51.1]} 30. Rd8+ {[%clk 0:01:34.9]} 30... Bf8
{[%clk 0:01:51.1]} 31. Rd3 {[%clk 0:01:25.7]} 31... Qc2 {[%clk 0:01:49.4]} 32.
Re1 {[%clk 0:01:14.5]} 32... Bh6 {[%clk 0:01:44.9]} 33. g3 {[%clk 0:01:06.2]}
33... h4 {[%clk 0:01:44.1]} 34. Kg2 {[%clk 0:01:04.3]} 34... Qc8 {[%clk
0:01:33.7]} 35. h3 {[%clk 0:00:43.1]} 35... hxg3 {[%clk 0:01:33.5]} 36. fxg3
{[%clk 0:00:42.8]} 36... Qc2+ {[%clk 0:01:29.4]} 37. Re2 {[%clk 0:00:43.2]}
37... Qb1 {[%clk 0:01:29.4]} 38. h4 {[%clk 0:00:37.1]} 38... Bf8 {[%clk
0:01:26.2]} 39. Re8 {[%clk 0:00:34]} 39... Qc2+ {[%clk 0:01:24.8]} 40. Kh3
{[%clk 0:00:30.5]} 40... Rb5 {[%clk 0:01:16.7]} 41. Rdd8 {[%clk 0:00:27.6]} 1-0

[Event "Early-Titled-Tuesday-Blitz-December-26-2023"]
[Site "Chess.com"]
[Date "2023.12.26"]
[Round "3"]
[White "Rap_woyska"]
[Black "Pastore1978"]
[Result "1-0"]
[WhiteElo "2408"]
[BlackElo "2203"]
[TimeControl "180+1"]
[EndTime "8:26:23 PST"]
[Termination "Rap_woyska won by resignation"]

1. c4 {[%clk 0:02:58.4]} 1... e6 {[%clk 0:03:00]} 2. Nf3 {[%clk 0:02:58.4]} 2...
d5 {[%clk 0:03:00.7]} 3. g3 {[%clk 0:02:59.1]} 3... Nf6 {[%clk 0:02:59.8]} 4.
Bg2 {[%clk 0:02:59.8]} 4... d4 {[%clk 0:02:56.6]} 5. O-O {[%clk 0:02:58.5]} 5...
c5 {[%clk 0:02:57.2]} 6. d3 {[%clk 0:02:57.7]} 6... Nc6 {[%clk 0:02:57.7]} 7. e3
{[%clk 0:02:58.3]} 7... e5 {[%clk 0:02:55.5]} 8. exd4 {[%clk 0:02:56.5]} 8...
cxd4 {[%clk 0:02:54]} 9. Re1 {[%clk 0:02:54.9]} 9... Bd6 {[%clk 0:02:44]} 10.
Nxe5 {[%clk 0:01:58.8]} 10... Nxe5 {[%clk 0:02:44.9]} 11. f4 {[%clk 0:01:58]}
11... Qe7 {[%clk 0:02:24.6]} 12. fxe5 {[%clk 0:01:47.2]} 12... Bxe5 {[%clk
0:02:25.5]} 13. Bf4 {[%clk 0:01:46.3]} 13... Nd7 {[%clk 0:02:25.2]} 14. Bh3
{[%clk 0:01:12.9]} 14... f6 {[%clk 0:02:20.3]} 15. Bxd7+ {[%clk 0:01:04.3]}
15... Bxd7 {[%clk 0:02:18.7]} 16. Bxe5 {[%clk 0:01:04.2]} 16... fxe5 {[%clk
0:02:19.2]} 17. Qh5+ {[%clk 0:01:04.4]} 17... g6 {[%clk 0:02:14.4]} 18. Qxe5
{[%clk 0:01:04.6]} 18... Qxe5 {[%clk 0:02:14.2]} 19. Rxe5+ {[%clk 0:01:05.5]}
19... Kf7 {[%clk 0:02:14.8]} 20. Nd2 {[%clk 0:01:05.4]} 20... Bf5 {[%clk
0:02:13.7]} 21. Rf1 {[%clk 0:01:00.3]} 21... Kg7 {[%clk 0:02:13.6]} 22. Re7+
{[%clk 0:00:53.3]} 22... Kh6 {[%clk 0:02:13.6]} 23. Rxb7 {[%clk 0:00:40.3]}
23... Bxd3 {[%clk 0:02:13.6]} 24. Rf4 {[%clk 0:00:40.7]} 24... Rae8 {[%clk
0:01:44.7]} 25. Rh4+ {[%clk 0:00:22.9]} 25... Kg5 {[%clk 0:01:45.3]} 26. Nf3+
{[%clk 0:00:23.8]} 26... Kf5 {[%clk 0:01:45.7]} 27. Rf4+ {[%clk 0:00:24.6]}
27... Ke6 {[%clk 0:01:41.8]} 28. Nxd4+ {[%clk 0:00:20.4]} 28... Ke5 {[%clk
0:01:42.5]} 29. Nf3+ {[%clk 0:00:15.4]} 29... Ke6 {[%clk 0:01:39.1]} 30. Ng5+
{[%clk 0:00:15.6]} 30... Kd6 {[%clk 0:01:37.6]} 31. Nf7+ {[%clk 0:00:10.6]}
31... Kc6 {[%clk 0:01:38.2]} 32. Rxa7 {[%clk 0:00:09.4]} 32... Re1+ {[%clk
0:01:36.6]} 33. Kg2 {[%clk 0:00:10.1]} 33... Be4+ {[%clk 0:01:32.6]} 34. Rxe4
{[%clk 0:00:09.3]} 34... Rxe4 {[%clk 0:01:28.9]} 35. Nxh8 {[%clk 0:00:09.7]}
35... Re2+ {[%clk 0:01:29.6]} 36. Kh3 {[%clk 0:00:09.8]} 36... Rxb2 {[%clk
0:01:30.5]} 37. Rxh7 {[%clk 0:00:10.2]} 37... Rxa2 {[%clk 0:01:30.7]} 38. Nxg6
{[%clk 0:00:10.8]} 1-0